bitfinex/quotes_SOLUSD_20251018
["timestamp","ask_amount","ask_price","bid_price","bid_amount"]
[1760799638307,39.04509955,186.11,186.01,25.46612642]
[1760799638308,0.7,186.06,186.03,5.37547707]
[1760799638502,3.38582203,186.04,186.03,11.37547705]
[1760799641883,22.88,186.11,186.03,25.46416973]
[1760799642089,3.38582203,186.06,186.03,25.46416973]
[1760799642516,3.58582203,186.12,186.06,22.88]
[1760799642517,0.2,186.12,186.06,22.88]
[1760799642733,0.2,186.12,186.07,50.81]
[1760799643006,0.2,186.12,186.11,22.88]
[1760799643206,1e-08,186.12,186.11,22.88]
[1760799643505,1e-08,186.12,186.11,65.12229724]
[1760799643888,1e-08,186.12,186.11,43.21546364]
[1760799644100,1e-08,186.12,186.11,70.49546364]
[1760799644389,1e-08,186.12,186.11,43.21546364]
[1760799644794,1e-08,186.12,186.11,70.49546364]
[1760799645608,1e-08,186.12,186.11,43.21546364]
[1760799646305,1e-08,186.12,186.11,70.49546364]
[1760799646487,1e-08,186.12,186.11,43.21546364]
[1760799646790,1e-08,186.12,186.11,42.51546364]
[1760799646990,1e-08,186.12,186.11,71.03278028]
[1760799647609,1e-08,186.12,186.11,43.75278028]
[1760799647806,1e-08,186.12,186.11,77.03278026]
[1760799648599,1e-08,186.12,186.11,49.75278026]
[1760799648788,1e-08,186.12,186.11,77.03278026]
[1760799648987,1e-08,186.12,186.11,73.64695823]
[1760799649615,1e-08,186.12,186.11,46.36695823]
[1760799649794,1e-08,186.12,186.11,73.64695823]
[1760799649994,1e-08,186.12,186.11,46.36695823]
[1760799650604,1e-08,186.12,186.11,73.62695823]
[1760799650806,0.2,186.16,186.15,33.75647521]
[1760799651015,0.2,186.16,186.15,67.01647518]
[1760799651810,0.2,186.16,186.15,72.38848699]
[1760799652313,0.2,186.16,186.15,45.12848699]
[1760799652610,0.2,186.16,186.15,72.38848699]
[1760799653527,0.1,186.19,186.18,22.88]
[1760799653820,0.81,186.19,186.18,22.88]
[1760799654118,0.81,186.19,186.18,28.2511462]
[1760799654619,0.81,186.19,186.18,34.25114617]
[1760799657000,0.1,186.19,186.18,34.25114617]
[1760799657202,0.81,186.19,186.18,34.25114617]
[1760799657913,0.1,186.19,186.18,34.25114617]
[1760799658718,0.81,186.19,186.18,34.25114617]
[1760799660406,0.1,186.19,186.18,72.98762138]
[1760799661102,0.1,186.19,186.18,45.72762138]
[1760799661423,0.1,186.21,186.19,10.87647521]
[1760799661613,0.1,186.21,186.2,27.26]
[1760799661923,0.1,186.21,186.2,50.14]
[1760799662302,0.1,186.21,186.2,5.89999997]
[1760799662502,0.1,186.21,186.2,33.15999997]
[1760799662710,0.1,186.21,186.2,38.53056925]
[1760799662902,0.1,186.21,186.2,61.41056925]
[1760799663206,0.1,186.21,186.2,34.15056925]
[1760799663409,1e-08,186.22,186.21,10.87647521]
[1760799663601,1e-08,186.23,186.22,5.89999997]
[1760799663800,1e-08,186.23,186.22,17.47647518]
[1760799664704,1e-08,186.23,186.22,22.84646766]
[1760799665211,1e-08,186.23,186.22,50.10646766]
[1760799665722,1e-08,186.23,186.22,22.84646766]
[1760799665921,1e-08,186.23,186.22,50.10646766]
[1760799666118,1e-08,186.23,186.22,22.14646766]
[1760799666308,1e-08,186.23,186.22,72.28646766]
[1760799666924,1e-08,186.23,186.22,45.02646766]
[1760799667427,1e-08,186.23,186.22,72.94646766]
[1760799667730,1e-08,186.23,186.22,45.68646766]
[1760799668308,0.1,186.27,186.22,45.68646766]
[1760799668514,0.1,186.27,186.25,10.87647521]
[1760799668928,0.1,186.27,186.26,27.24]
[1760799669228,0.1,186.27,186.26,5.89999997]
[1760799669407,0.1,186.27,186.26,33.13999997]
[1760799669613,0.1,186.27,186.26,11.26883922]
[1760799670114,0.8,186.27,186.26,11.26883922]
[1760799670615,0.1,186.27,186.26,11.26883922]
[1760799671312,0.1,186.27,186.26,38.50883922]
[1760799671718,0.1,186.27,186.26,11.26883922]
[1760799671929,0.1,186.27,186.26,38.50883922]
[1760799672428,0.1,186.27,186.26,37.20883922]
[1760799672628,0.1,186.27,186.26,9.96883922]
[1760799672830,0.1,186.27,186.26,37.20883922]
[1760799673229,0.1,186.27,186.26,9.96883922]
[1760799673429,0.1,186.27,186.26,48.08531443]
[1760799673620,0.1,186.27,186.26,20.84531443]
[1760799674118,0.1,186.27,186.26,48.79531443]
[1760799674326,1e-08,186.27,186.26,48.79531443]
[1760799674539,1e-08,186.27,186.26,21.55531443]
[1760799675846,0.66000001,186.27,186.26,5.36883925]
[1760799676623,1e-08,186.27,186.26,43.48531446]
[1760799677431,1e-08,186.27,186.26,16.24531446]
[1760799677941,1e-08,186.27,186.26,43.48531446]
[1760799678739,1e-08,186.27,186.26,16.24531446]
[1760799679123,0.66000001,186.27,186.26,5.36883925]
[1760799681335,0.66000001,186.27,186.26,8.86883922]
[1760799682045,0.66000001,186.27,186.26,8.06883922]
[1760799682736,1e-08,186.27,186.26,8.06883922]
[1760799683341,0.66000001,186.27,186.26,8.06883922]
[1760799683941,1e-08,186.27,186.26,8.06883922]
[1760799687753,1e-08,186.27,186.26,46.18531443]
[1760799688263,0.1,186.28,186.27,13.57647517]
[1760799688646,0.76,186.28,186.27,2.69999996]
[1760799689770,0.76,186.28,186.27,8.06855098]
[1760799690477,2.92072465,186.28,186.27,8.06855098]
[1760799692472,2.92072465,186.28,186.24,16.12312431]
[1760799692659,2.92072465,186.28,186.25,5.36912751]
[1760799692660,0.66,186.27,186.25,5.36912751]
[1760799692983,2.16072465,186.26,186.25,5.36912751]
[1760799693176,2.82072465,186.26,186.25,5.36912751]
[1760799694386,2.82072465,186.26,186.24,5.3694158]
[1760799694558,2.16072465,186.26,186.24,5.3694158]
[1760799694757,0.66,186.25,186.24,5.3694158]
[1760799694967,2.82072465,186.25,186.24,5.3694158]
[1760799695372,2.26072465,186.28,186.24,19.50295531]
[1760799695581,0.1,186.28,186.25,27.95]
[1760799696080,0.76,186.28,186.25,29.93999996]
[1760799696251,0.76,186.28,186.25,2.69999996]
[1760799696581,0.76,186.28,186.26,5.36883925]
[1760799697075,0.1,186.28,186.26,5.36883925]
[1760799698070,0.76,186.28,186.26,5.36883925]
[1760799698955,0.1,186.28,186.26,5.36883925]
[1760799699176,2.82072465,186.27,186.26,5.36883925]
[1760799699476,2.82072465,186.27,186.21,27.56027805]
[1760799699477,25.70072465,186.27,186.17,5.37143471]
[1760799699650,2.16072465,186.18,186.17,18.79996645]
[1760799700574,2.82072465,186.18,186.17,5.37143471]
[1760799700951,2.16072465,186.18,186.14,18.80234676]
[1760799701157,2.16072465,186.17,186.15,10.87647521]
[1760799701585,2.16072465,186.18,186.15,11.58647521]
[1760799701754,2.16072465,186.24,186.19,10.87647521]
[1760799702078,0.66,186.23,186.14,18.80234676]
[1760799702385,2.16072465,186.18,186.14,18.80234676]
[1760799702567,2.16072465,186.19,186.14,18.80234676]
[1760799702767,0.66,186.19,186.14,18.80234676]
[1760799702988,2.16072465,186.16,186.14,13.43004635]
[1760799703187,2.16072465,186.15,186.14,13.43004635]
[1760799703366,2.87072465,186.15,186.14,13.43004635]
[1760799703561,2.87072465,186.15,186.13,5.37258905]
[1760799703765,2.87072465,186.14,186.13,5.37258905]
[1760799703990,2.87072465,186.14,186.09,5.37374388]
[1760799704284,2.16072465,186.1,186.07,5.5740632]
[1760799704487,2.16072465,186.08,186.07,0.2]
[1760799704659,2.87072465,186.08,186.07,0.2]
[1760799705087,2.87072465,186.08,186.03,0.2]
[1760799705266,2.16072465,186.04,186.03,0.2]
[1760799705475,11.51362325,186.04,186.03,0.2]
[1760799706090,5.0314493,186.04,186.03,0.2]
[1760799706290,5.0314493,186.04,185.98,5.37690286]
[1760799706583,2.16072465,185.99,185.98,5.37690286]
[1760799706796,2.87072465,185.99,185.94,18.82303281]
[1760799706966,2.16072465,185.96,185.94,18.82303281]
[1760799707164,2.16072465,185.97,185.94,18.82303281]
[1760799708582,2.87072465,185.98,185.94,19.54303281]
[1760799708774,2.16072465,185.98,185.94,19.54303281]
[1760799710205,22.88,186.05,185.95,11.59647521]
[1760799710372,0.71,186.03,185.96,0.72]
[1760799710572,0.71,186.03,185.97,10.87647521]
[1760799710897,2.87072465,186.05,185.98,0.72]
[1760799711072,2.87072465,186.05,185.98,3.31999996]
[1760799711703,16.16597063,186.13,186.01,10.87647521]
[1760799711907,0.71,186.09,186.03,10.87647521]
[1760799712114,2.16072465,186.08,186.03,10.87647521]
[1760799712312,2.87072465,186.08,186.04,18.81315845]
[1760799714020,2.16072465,186.09,186.05,11.59647521]
[1760799715287,2.16072465,186.09,186.06,18.81113619]
[1760799716115,2.87072465,186.09,186.06,18.81113619]
[1760799717213,2.16072465,186.09,186.06,18.81113619]
[1760799717602,2.16072465,186.1,186.06,18.81113619]
[1760799717795,2.87072465,186.1,186.06,18.81113619]
[1760799718614,0.71,186.14,186.07,11.59647521]
[1760799718798,2.16072465,186.1,186.07,10.87647521]
[1760799718998,2.87072465,186.1,186.07,13.47647517]
[1760799719400,2.87072465,186.09,186.07,2.59999996]
[1760799719606,2.16072465,186.09,186.07,2.59999996]
[1760799720405,2.87072465,186.09,186.07,2.59999996]
[1760799720588,2.87072465,186.09,186.08,5.37403267]
[1760799720785,2.87072465,186.09,186.07,2.59999996]
[1760799720989,2.87072465,186.08,186.07,2.59999996]
[1760799721612,2.87072465,186.08,186.07,7.97432145]
[1760799721988,2.16072465,186.09,186.07,7.97432145]
[1760799722194,0.71,186.08,186.07,7.97432145]
[1760799722510,2.87072465,186.08,186.07,7.97432145]
[1760799722717,2.87072465,186.08,186.05,7.97462062]
[1760799722898,2.87072465,186.07,186.05,7.97462062]
[1760799723102,2.87072465,186.06,186.03,5.37547707]
[1760799723298,2.87072465,186.05,186.03,7.97547703]
[1760799723499,2.87072465,186.05,186.03,5.37547707]
[1760799723695,0.71,186.04,186.03,5.37547707]
[1760799724109,2.87072465,186.04,186.03,5.37547707]
[1760799724291,2.87072465,186.04,186.0,18.81720429]
[1760799725508,2.16072465,186.04,186.0,19.53720429]
[1760799725820,2.16072465,186.04,186.02,5.37576604]
[1760799728510,2.16072465,186.05,186.02,22.09518111]
[1760799729412,2.16072465,186.04,186.02,21.41518111]
[1760799731308,2.16072465,186.04,186.02,22.09518111]
[1760799733508,2.82072465,186.03,186.02,7.975766]
[1760799733904,2.82072465,186.03,186.01,5.37602581]
[1760799734101,2.82072465,186.02,185.96,13.44307042]
[1760799734418,2.16072465,185.98,185.96,13.44307042]
[1760799734616,2.16072465,185.99,185.96,14.10307042]
[1760799735225,2.16072465,185.99,185.97,5.37721137]
[1760799735532,3.38828434,185.99,185.97,5.37721137]
[1760799736221,3.38828434,185.99,185.97,28.25721137]
[1760799736419,4.04828434,185.98,185.95,5.37754496]
[1760799736613,3.38828434,185.96,185.94,5.37807104]
[1760799736809,3.38828434,185.95,185.94,5.37807104]
[1760799737125,3.38828434,185.96,185.94,6.03807104]
[1760799738509,3.38828434,185.96,185.94,42.36326841]
[1760799740522,3.38828434,185.96,185.94,44.96326837]
[1760799741627,3.38828434,185.98,185.95,0.66]
[1760799741927,3.38828434,185.98,185.96,0.66]
[1760799743127,0.66,185.98,185.97,5.37721137]
[1760799743628,0.66,186.0,185.97,5.37721137]
[1760799743830,0.66,185.99,185.97,7.97721133]
[1760799744416,3.38828434,185.98,185.97,7.97721133]
[1760799745112,3.38828434,185.98,185.97,8.63721133]
[1760799745523,3.38828434,185.99,185.97,22.08023977]
[1760799746228,22.88,186.06,185.98,0.66]
[1760799746229,3.38828434,186.01,185.98,0.66]
[1760799746437,3.38828434,185.99,185.97,21.42023977]
[1760799746730,3.38828434,185.98,185.97,44.96023977]
[1760799747110,3.38828434,185.98,185.97,44.30023977]
[1760799747322,3.38828434,185.99,185.97,44.96023977]
[1760799748112,3.38828434,186.0,185.97,44.96023977]
[1760799748313,3.38828434,186.01,185.98,0.66]
[1760799748622,3.38828434,186.01,185.97,44.30023977]
[1760799748825,4.04828434,186.04,185.98,0.66]
[1760799749020,3.38828434,185.99,185.98,2.59999996]
[1760799749334,4.04828434,185.99,185.97,18.82023981]
[1760799749533,4.04828434,185.99,185.95,22.88]
[1760799749534,4.04828434,185.98,185.96,5.37747149]
[1760799749735,4.04828434,185.97,185.96,5.37747149]
[1760799750031,3.38828434,185.97,185.96,5.37747149]
[1760799750613,4.04828434,185.97,185.95,28.25778245]
[1760799750810,3.38828434,185.96,185.95,28.25778245]
[1760799751122,4.04828434,185.96,185.93,0.2]
[1760799751321,3.38828434,185.94,185.93,5.5783682]
[1760799752633,3.38828434,185.96,185.93,19.6842887]
[1760799755025,0.66,185.98,185.93,19.0242887]
[1760799755225,3.38828434,185.97,185.94,0.66]
[1760799755430,3.38828434,185.98,185.95,0.66]
[1760799755616,0.66,186.01,185.96,0.66]
[1760799755617,3.38828434,185.99,185.96,0.66]
[1760799756621,3.38828434,186.01,185.97,0.66]
[1760799756823,3.38828434,186.01,185.98,23.54]
[1760799757040,3.38828434,186.01,185.99,5.37663315]
[1760799757246,4.04828434,186.0,185.99,5.37663315]
[1760799757747,4.04828434,186.0,185.98,5.37685693]
[1760799757924,4.04828434,185.99,185.98,5.37685693]
[1760799759634,4.04828434,185.99,185.93,27.09184101]
[1760799759635,4.04828434,185.99,185.93,13.64566193]
[1760799759838,3.38828434,185.94,185.93,19.02403013]
[1760799760935,3.38828434,185.95,185.93,19.02403013]
[1760799762438,3.38828434,185.94,185.93,19.02403013]
[1760799763451,3.38828434,185.94,185.93,41.90403013]
[1760799765044,3.38828434,185.94,185.93,31.05836816]
[1760799765247,4.04828434,185.94,185.93,25.67999996]
[1760799765829,4.04828434,185.94,185.93,2.79999996]
[1760799766039,0.66,185.94,185.93,0.2]
[1760799766229,4.04828434,185.94,185.93,5.5783682]
[1760799767244,3.38828434,185.95,185.93,5.5783682]
[1760799767550,4.04828434,185.95,185.93,5.5783682]
[1760799767747,3.38828434,185.96,185.93,5.5783682]
[1760799767947,4.04828434,185.98,185.93,8.17836816]
[1760799768244,4.04828434,185.98,185.93,8.89836816]
[1760799768442,4.04828434,185.98,185.93,45.22428866]
[1760799768646,3.38828434,185.96,185.93,44.50428866]
[1760799768853,4.04828434,185.95,185.93,31.05836816]
[1760799769031,4.04828434,185.94,185.93,31.05836816]
[1760799769231,0.66,186.0,185.94,10.87647521]
[1760799769442,3.38828434,186.03,185.97,22.88]
[1760799769646,4.04828434,186.04,185.98,0.72]
[1760799769840,3.38828434,186.02,185.98,22.88]
[1760799770037,0.66,186.01,185.98,22.88]
[1760799770549,0.66,186.01,185.97,22.88]
[1760799770749,0.66,186.01,185.97,23.6]
[1760799770926,0.66,186.03,185.98,0.72]
[1760799771131,0.66,186.03,186.0,5.37634408]
[1760799771634,3.38828434,186.04,186.0,5.37634408]
[1760799771831,13.68717368,186.11,186.0,5.37634408]
[1760799771832,4.04828434,186.05,186.0,6.09634408]
[1760799772735,4.04828434,186.05,186.0,19.53720429]
[1760799773129,0.66,186.1,186.03,10.87647521]
[1760799773349,3.38828434,186.06,186.02,5.37576604]
[1760799773552,3.38828434,186.03,186.02,5.37576604]
[1760799774352,4.04828434,186.03,186.01,5.37600364]
[1760799774569,4.04828434,186.05,186.01,5.37600364]
[1760799775257,4.04828434,186.05,186.01,6.09600364]
[1760799775753,3.38828434,186.04,186.01,19.53614126]
[1760799776356,3.38828434,186.05,186.01,19.53614126]
[1760799776548,3.38828434,186.04,186.01,19.53614126]
[1760799778646,3.38828434,186.05,186.02,0.72]
[1760799778847,3.38828434,186.05,186.03,0.72]
[1760799779060,3.38828434,186.05,186.01,21.41614122]
[1760799779061,3.38828434,186.04,186.01,21.41614122]
[1760799779263,3.38828434,186.03,186.01,22.13614122]
[1760799779644,3.38828434,186.04,186.01,22.13614122]
[1760799781370,0.66,186.06,186.01,7.9760036]
[1760799781556,3.38828434,186.02,185.97,2.59999996]
[1760799781749,3.38828434,185.98,185.95,5.37778972]
[1760799781949,3.38828434,185.98,185.95,8.69778968]
[1760799782148,3.38828434,185.98,185.95,22.14168515]
[1760799782344,3.38828434,185.97,185.95,21.42168515]
[1760799782563,3.38828434,185.97,185.95,22.14168515]
[1760799783066,3.38828434,185.98,185.95,22.14168515]
[1760799783845,3.38828434,185.99,185.95,21.42168515]
[1760799784160,3.38828434,186.01,185.96,0.72]
[1760799784752,0.66,186.03,185.96,0.72]
[1760799784753,3.38828434,186.04,185.97,10.87647521]
[1760799785063,3.38828434,186.05,185.99,10.87647521]
[1760799785270,3.38828434,186.03,185.98,28.14]
[1760799785460,4.04828434,186.02,185.98,0.72]
[1760799785772,4.04828434,186.02,185.99,5.37663315]
[1760799785949,4.09828434,186.05,186.0,0.66]
[1760799786368,3.38828434,186.05,186.01,0.66]
[1760799786581,4.09828434,186.05,186.01,2.59999996]
[1760799786878,3.38828434,186.02,185.99,2.59999996]
[1760799787061,22.88,186.09,185.99,2.59999996]
[1760799787062,3.38828434,186.03,185.99,2.59999996]
[1760799787263,4.09828434,186.05,186.0,0.66]
[1760799787457,3.38828434,186.05,186.0,0.66]
[1760799787763,4.09828434,186.05,186.0,0.66]
[1760799787966,3.38828434,186.05,186.01,5.37605505]
[1760799788169,0.71,186.04,186.01,5.37605505]
[1760799788487,0.71,186.04,186.01,18.81619267]
[1760799788665,3.38828434,186.05,186.01,19.47619267]
[1760799788860,3.38828434,186.04,186.01,5.37605505]
[1760799789168,4.09828434,186.04,186.01,5.37605505]
[1760799789481,22.88,186.11,186.01,5.37605505]
[1760799789482,3.38828434,186.05,186.01,5.37605505]
[1760799789669,4.09828434,186.05,186.01,7.97605501]
[1760799789872,3.38828434,186.06,186.01,22.07619263]
[1760799790177,0.71,186.05,186.01,22.07619263]
[1760799790376,3.38828434,186.06,186.01,21.41619263]
[1760799790562,0.71,186.05,186.01,21.41619263]
[1760799790764,4.09828434,186.05,186.01,21.41619263]
[1760799791376,4.09828434,186.05,186.01,22.07619263]
[1760799791975,0.71,186.05,186.01,22.07619263]
[1760799794577,3.38828434,186.06,186.03,5.37547707]
[1760799794770,4.07828434,186.06,186.03,5.37547707]
[1760799794977,3.38828434,186.05,186.03,5.37547707]
[1760799795375,3.38828434,186.05,186.03,18.81416975]
[1760799796084,3.38828434,186.05,186.03,13.43869268]
[1760799797371,2.16718312,186.05,186.03,13.43869268]
[1760799799690,2.85718312,186.06,186.03,21.41416971]
[1760799800272,8.66873248,186.12,186.03,21.41416971]
[1760799800273,2.16718312,186.04,186.03,7.97547703]
[1760799800582,2.85718312,186.04,186.03,7.97547703]
[1760799800770,0.69,186.04,186.03,7.97547703]
[1760799800967,2.16718312,186.05,186.03,7.97547703]
[1760799801172,2.85718312,186.05,186.03,7.97547703]
[1760799802184,2.16718312,186.05,186.03,7.97547703]
[1760799802369,2.16718312,186.06,186.03,7.97547703]
[1760799802570,22.88,186.13,186.04,0.71]
[1760799802873,2.16718312,186.07,186.03,18.81416975]
[1760799803072,2.16718312,186.05,186.03,5.37547707]
[1760799803489,2.85718312,186.04,186.03,5.37547707]
[1760799803900,2.16718312,186.05,186.03,5.37547707]
[1760799804100,2.85718312,186.05,186.03,5.37547707]
[1760799804673,2.85718312,186.05,186.02,5.37576604]
[1760799807380,0.69,186.05,186.02,5.37576604]
[1760799807581,0.69,186.05,186.02,18.81518115]
[1760799807781,2.85718312,186.07,186.02,18.81518115]
[1760799807988,0.69,186.06,186.02,19.52518115]
[1760799808494,0.69,186.06,186.02,22.12518111]
[1760799808687,2.16718312,186.07,186.02,21.41518111]
[1760799808869,0.69,186.07,186.03,0.71]
[1760799809072,2.16718312,186.09,186.02,22.12518111]
[1760799809280,2.85718312,186.08,186.02,22.12518111]
[1760799809498,0.69,186.08,186.02,22.12518111]
[1760799810291,2.85718312,186.08,186.03,0.71]
[1760799810492,0.69,186.07,186.02,21.41518111]
[1760799810670,2.85718312,186.06,186.02,22.12518111]
[1760799810871,0.69,186.06,186.02,22.12518111]
[1760799811487,2.85718312,186.05,186.02,7.975766]
[1760799811797,2.85718312,186.07,186.02,22.12518111]
[1760799811973,0.69,186.07,186.02,21.41518111]
[1760799812291,2.16718312,186.08,186.03,0.71]
[1760799812499,2.16718312,186.08,186.04,0.71]
[1760799812686,2.85718312,186.08,186.04,0.71]
[1760799813095,2.85718312,186.08,186.05,5.37489922]
[1760799813393,2.16718312,186.09,186.05,5.37489922]
[1760799813689,2.16718312,186.07,186.05,5.37489922]
[1760799814085,2.85718312,186.07,186.05,5.37489922]
[1760799814291,2.85718312,186.06,186.04,2.59999996]
[1760799814490,2.85718312,186.05,186.03,5.37521461]
[1760799814689,2.85718312,186.07,186.03,5.37521461]
[1760799814997,0.69,186.06,186.03,5.37521461]
[1760799815404,2.16718312,186.07,186.03,19.52390729]
[1760799815589,2.85718312,186.07,186.03,19.52390729]
[1760799818506,0.69,186.07,186.03,19.52390729]
[1760799818720,2.16718312,186.08,186.03,18.81390729]
[1760799819024,2.85718312,186.08,186.04,0.71]
[1760799819888,2.85718312,186.08,186.05,5.37489922]
[1760799820503,0.69,186.08,186.05,5.37489922]
[1760799820702,2.85718312,186.08,186.05,5.37489922]
[1760799821405,4.80984702,186.17,186.05,21.41214723]
[1760799821586,2.16718312,186.11,186.05,19.52214727]
[1760799821788,2.85718312,186.11,186.06,0.71]
[1760799821992,0.69,186.11,186.06,0.71]
[1760799822187,0.69,186.11,186.05,18.81214727]
[1760799822392,2.85718312,186.11,186.07,0.71]
[1760799822607,2.85718312,186.11,186.08,5.37403267]
[1760799823019,2.16718312,186.12,186.08,6.08403267]
[1760799823223,2.16718312,186.12,186.08,5.37403267]
[1760799823520,0.66,186.12,186.08,6.08403267]
[1760799823699,0.66,186.18,186.1,10.87647521]
[1760799823901,0.66,186.18,186.11,0.71]
[1760799824103,2.16718312,186.19,186.11,0.71]
[1760799824614,2.82718312,186.2,186.12,18.80507199]
[1760799824814,0.66,186.2,186.13,0.71]
[1760799825300,2.26718312,186.22,186.13,0.71]
[1760799825638,2.92718312,186.22,186.13,0.71]
[1760799826296,2.92718312,186.22,186.14,18.80305145]
[1760799826297,0.76,186.22,186.14,18.80305145]
[1760799826502,2.92718312,186.22,186.15,0.71]
[1760799827320,2.92718312,186.22,186.16,5.37172324]
[1760799827623,2.82718312,186.21,186.16,5.37172324]
[1760799827821,0.66,186.2,186.16,6.08172324]
[1760799828320,2.82718312,186.2,186.16,6.08172324]
[1760799829197,2.82718312,186.2,186.16,8.6817232]
[1760799830901,2.16718312,186.19,186.16,8.6817232]
[1760799832020,2.82718312,186.2,186.16,8.6817232]
[1760799833141,2.16718312,186.19,186.16,8.6817232]
[1760799834113,2.16718312,186.17,186.16,2.59999996]
[1760799834415,2.82718312,186.17,186.14,5.37218754]
[1760799834716,2.16718312,186.15,186.14,5.37218754]
[1760799835416,2.16718312,186.16,186.14,5.37218754]
[1760799835916,8.66873248,186.21,186.14,5.37218754]
[1760799836218,2.82718312,186.18,186.14,7.9721875]
[1760799836424,2.16718312,186.17,186.14,7.9721875]
[1760799836939,2.16718312,186.17,186.14,8.6821875]
[1760799837348,2.16718312,186.16,186.14,8.6821875]
[1760799838437,2.82718312,186.15,186.14,7.9721875]
[1760799838642,2.16718312,186.15,186.14,7.9721875]
[1760799839943,2.16718312,186.16,186.14,7.9721875]
[1760799840143,2.82718312,186.15,186.08,0.71]
[1760799840344,0.66,186.15,186.06,0.71]
[1760799840542,0.66,186.15,185.92,28.89184346]
[1760799840543,2.16718312,186.07,186.03,0.71]
[1760799840722,2.16718312,186.04,186.01,0.71]
[1760799840927,2.16718312,186.02,185.98,0.71]
[1760799841242,2.16718312,185.99,185.96,6.08750053]
[1760799841547,2.16718312,186.0,185.97,0.71]
[1760799841744,2.16718312,185.99,185.96,5.37750053]
[1760799841944,2.16718312,186.0,185.96,5.37750053]
[1760799842243,2.16718312,185.97,185.95,5.37778166]
[1760799842623,2.16718312,185.99,185.95,6.08778166]
[1760799843044,2.82718312,185.99,185.95,18.82225598]
[1760799843345,2.82718312,185.98,185.95,5.37778166]
[1760799843545,2.82718312,185.97,185.93,5.57811105]
[1760799843849,0.66,185.99,185.93,6.28830407]
[1760799844031,0.66,185.99,185.93,5.57830407]
[1760799844236,2.82718312,185.99,185.94,0.71]
[1760799844434,2.82718312,185.98,185.93,41.90422457]
[1760799844628,0.66,185.98,185.94,0.71]
[1760799844939,2.16718312,185.99,185.93,41.90422457]
[1760799845136,2.16718312,186.0,185.95,0.71]
[1760799845358,2.16718312,186.01,185.95,0.71]
[1760799845524,2.82718312,186.02,185.95,0.71]
[1760799845927,0.67,186.04,185.97,18.82023981]
[1760799846127,0.67,186.04,185.98,0.68]
[1760799847048,0.67,186.04,185.99,5.37663315]
[1760799847236,2.83718312,186.06,186.0,0.68]
[1760799847436,2.83718312,186.06,185.99,18.81821603]
[1760799847437,2.83718312,186.05,185.99,21.41821599]
[1760799849754,0.67,186.04,185.99,21.41821599]
[1760799850054,2.83718312,186.03,185.99,7.97663311]
[1760799850251,0.67,186.02,185.99,7.97663311]
[1760799851460,0.67,186.01,185.99,7.97663311]
[1760799851635,0.67,186.0,185.98,5.37688822]
[1760799852360,2.83718312,186.02,185.98,5.37688822]
[1760799852538,2.16718312,186.04,185.99,0.68]
[1760799852733,0.67,186.04,185.99,0.68]
[1760799852934,15.2021126,186.1,186.01,5.37605505]
[1760799853142,2.16718312,186.06,186.01,5.37605505]
[1760799853453,5.37348581,186.1,186.01,5.37605505]
[1760799853454,2.16718312,186.04,186.01,5.37605505]
[1760799853641,0.67,186.04,186.01,5.37605505]
[1760799854356,0.67,186.04,185.99,5.37663315]
[1760799854655,2.16718312,186.01,185.94,3.26]
[1760799854846,2.83718312,186.0,185.95,5.37776714]
[1760799855047,2.83718312,186.0,185.95,6.03776714]
[1760799855356,2.16718312,185.99,185.95,6.03776714]
[1760799855752,2.83718312,185.99,185.95,6.03776714]
[1760799856460,2.16718312,185.98,185.95,6.03776714]
[1760799857164,2.16718312,185.97,185.94,5.37807895]
[1760799857365,3.38932549,185.97,185.94,7.97807895]
[1760799857663,3.38932549,185.97,185.94,22.08327632]
[1760799857857,0.67,186.03,185.95,0.66]
[1760799858059,0.67,186.06,185.96,10.87647521]
[1760799858364,4.05932549,186.06,185.98,10.87647521]
[1760799858558,4.05932549,186.06,185.99,0.66]
[1760799858861,3.38932549,186.05,185.99,0.66]
[1760799859158,4.05932549,186.06,186.0,18.81720429]
[1760799859356,4.05932549,186.06,186.01,0.66]
[1760799859738,3.38932549,186.07,186.02,0.66]
[1760799860148,4.05932549,186.07,186.02,0.66]
[1760799860354,3.38932549,186.07,186.02,0.66]
[1760799860551,0.67,186.06,186.03,22.88]
[1760799860741,4.05932549,186.06,186.03,22.88]
[1760799861366,4.05932549,186.06,186.03,28.25530024]
[1760799862264,0.67,186.11,186.04,0.66]
[1760799862466,3.38932549,186.09,186.04,0.66]